[Event "Live Chess"]
[Site "Chess.com"]
[Date "2023.05.21"]
[Round "-"]
[White "ranvir123"]
[Black "manthanit"]
[Result "1-0"]
[WhiteElo "974"]
[BlackElo "1069"]
[TimeControl "300"]
[EndTime "4:34:41 PDT"]
[Termination "ranvir123 won on time"]

1. e4 {[%clk 0:04:57.9]} 1... e6 {[%clk 0:04:59.1]} 2. d4 {[%clk 0:04:54.9]}
2... d5 {[%clk 0:04:58.4]} 3. e5 {[%clk 0:04:53.1]} 3... c5 {[%clk 0:04:57.3]}
4. Nf3 {[%clk 0:04:46.5]} 4... Qb6 {[%clk 0:04:55]} 5. Nc3 {[%clk 0:04:41.4]}
5... Nc6 {[%clk 0:04:53.7]} 6. Bb5 {[%clk 0:04:31.9]} 6... Bd7 {[%clk 0:04:48]}
7. O-O {[%clk 0:04:25.4]} 7... a6 {[%clk 0:04:47.1]} 8. Bd3 {[%clk 0:04:21.3]}
8... cxd4 {[%clk 0:04:40.3]} 9. Ne2 {[%clk 0:04:16.3]} 9... Bc5 {[%clk 0:04:30]}
10. c3 {[%clk 0:04:07.5]} 10... dxc3 {[%clk 0:04:28.9]} 11. Nxc3 {[%clk
0:04:05.8]} 11... Nge7 {[%clk 0:04:24.3]} 12. Bg5 {[%clk 0:04:04.7]} 12... O-O
{[%clk 0:04:05.4]} 13. Na4 {[%clk 0:03:55.2]} 13... Qb4 {[%clk 0:03:46.2]} 14.
a3 {[%clk 0:03:39.8]} 14... Qa5 {[%clk 0:03:23.2]} 15. b4 {[%clk 0:03:31.5]}
15... Bxb4 {[%clk 0:03:18.5]} 16. axb4 {[%clk 0:03:28.7]} 16... Qxb4 {[%clk
0:03:17.7]} 17. Bxe7 {[%clk 0:03:17]} 17... Qxe7 {[%clk 0:03:16]} 18. Nb6 {[%clk
0:03:16.2]} 18... Rab8 {[%clk 0:03:09]} 19. Nxd7 {[%clk 0:03:08.3]} 19... Qxd7
{[%clk 0:03:07.8]} 20. Ng5 {[%clk 0:03:07]} 20... g6 {[%clk 0:03:03.7]} 21. Qf3
{[%clk 0:03:02.9]} 21... Nxe5 {[%clk 0:03:00.2]} 22. Qh3 {[%clk 0:02:55.9]}
22... f6 {[%clk 0:02:53.1]} 23. Nxh7 {[%clk 0:02:30.9]} 23... Qxh7 {[%clk
0:02:51.3]} 24. Qxe6+ {[%clk 0:02:28.6]} 24... Qf7 {[%clk 0:02:34.9]} 25. Qh3
{[%clk 0:02:01.2]} 25... Nxd3 {[%clk 0:02:30.8]} 26. Qxd3 {[%clk 0:02:00.6]}
26... Rfe8 {[%clk 0:02:11.8]} 27. Rfd1 {[%clk 0:01:54.8]} 27... Rbd8 {[%clk
0:02:08.4]} 28. h4 {[%clk 0:01:41]} 28... Kg7 {[%clk 0:02:01.5]} 29. Qg3 {[%clk
0:01:37.8]} 29... Re5 {[%clk 0:01:46.4]} 30. h5 {[%clk 0:01:34.3]} 30... Rde8
{[%clk 0:01:42.7]} 31. hxg6 {[%clk 0:01:30.5]} 31... Qxg6 {[%clk 0:01:41.4]} 32.
Qb3 {[%clk 0:01:21.3]} 32... R8e7 {[%clk 0:01:30.1]} 33. f4 {[%clk 0:01:14.7]}
33... Rh5 {[%clk 0:01:14.7]} 34. Rxd5 {[%clk 0:00:51.8]} 34... Rxd5 {[%clk
0:01:11.7]} 35. Qxd5 {[%clk 0:00:42.9]} 35... Qg3 {[%clk 0:00:38.9]} 36. Rb1
{[%clk 0:00:26.7]} 36... Re1+ {[%clk 0:00:36.5]} 37. Rxe1 {[%clk 0:00:24.7]}
37... Qxe1+ {[%clk 0:00:35.4]} 38. Kh2 {[%clk 0:00:23.8]} 38... Qe7 {[%clk
0:00:31.2]} 39. Kg3 {[%clk 0:00:17.8]} 39... Qe3+ {[%clk 0:00:27]} 40. Kg4
{[%clk 0:00:17.1]} 40... Qe7 {[%clk 0:00:21.6]} 41. Qh5 {[%clk 0:00:15.6]} 41...
Qe6+ {[%clk 0:00:16.8]} 42. f5 {[%clk 0:00:14.1]} 42... Qe4+ {[%clk 0:00:13.4]}
43. Kh3 {[%clk 0:00:12.4]} 43... Qd3+ {[%clk 0:00:11.2]} 44. Qf3 {[%clk
0:00:10.9]} 44... Qxf3+ {[%clk 0:00:10.1]} 45. gxf3 {[%clk 0:00:10.8]} 45... Kf7
{[%clk 0:00:08.8]} 46. Kg3 {[%clk 0:00:09.8]} 46... Ke7 {[%clk 0:00:08.4]} 47.
Kf2 {[%clk 0:00:09]} 47... Kd6 {[%clk 0:00:08]} 48. Ke2 {[%clk 0:00:08.5]} 48...
Kd5 {[%clk 0:00:07.6]} 49. Kd2 {[%clk 0:00:08.4]} 49... Ke5 {[%clk 0:00:06.5]}
50. Kc2 {[%clk 0:00:08.3]} 50... Kxf5 {[%clk 0:00:06]} 51. Kd2 {[%clk
0:00:07.7]} 51... Ke5 {[%clk 0:00:05.5]} 52. Ke2 {[%clk 0:00:07.6]} 52... Kd4
{[%clk 0:00:04.7]} 53. Kf2 {[%clk 0:00:07.5]} 53... b5 {[%clk 0:00:03.7]} 54.
Kg3 {[%clk 0:00:07.4]} 54... b4 {[%clk 0:00:03.2]} 55. Kf4 {[%clk 0:00:07.3]}
55... b3 {[%clk 0:00:02.6]} 56. Kg3 {[%clk 0:00:07.2]} 56... b2 {[%clk 0:00:02]}
57. Kf2 {[%clk 0:00:07.1]} 57... b1=Q {[%clk 0:00:01.4]} 58. Kg3 {[%clk
0:00:07]} 58... Qb3 {[%clk 0:00:00.5]} 59. Kf4 {[%clk 0:00:06.9]} 1-0

[Event "Live Chess"]
[Site "Chess.com"]
[Date "2023.05.21"]
[Round "-"]
[White "JoeRoot66"]
[Black "Dhaydon19"]
[Result "0-1"]
[WhiteElo "1916"]
[BlackElo "2701"]
[TimeControl "300"]
[EndTime "4:34:42 PDT"]
[Termination "Dhaydon19 won by resignation"]

1. e4 {[%clk 0:04:59.4]} 1... c6 {[%clk 0:04:57.8]} 2. Nf3 {[%clk 0:04:57.4]}
2... d5 {[%clk 0:04:57.3]} 3. Nc3 {[%clk 0:04:57.1]} 3... Bg4 {[%clk 0:04:55.7]}
4. h3 {[%clk 0:04:56]} 4... Bxf3 {[%clk 0:04:54.7]} 5. Qxf3 {[%clk 0:04:55.9]}
5... e6 {[%clk 0:04:54.1]} 6. Be2 {[%clk 0:04:53.4]} 6... Nf6 {[%clk 0:04:53.1]}
7. d3 {[%clk 0:04:52.7]} 7... Nbd7 {[%clk 0:04:52.3]} 8. O-O {[%clk 0:04:51.6]}
8... h5 {[%clk 0:04:50.6]} 9. Re1 {[%clk 0:04:42.8]} 9... Be7 {[%clk 0:04:46]}
10. Bf4 {[%clk 0:04:40.2]} 10... Qb6 {[%clk 0:04:40.9]} 11. Rab1 {[%clk
0:04:09.6]} 11... d4 {[%clk 0:04:36.2]} 12. Nd1 {[%clk 0:04:05.6]} 12... Qa5
{[%clk 0:04:33.8]} 13. c3 {[%clk 0:04:02]} 13... Qxa2 {[%clk 0:04:32.1]} 14. Rc1
{[%clk 0:03:50.9]} 14... e5 {[%clk 0:04:30.3]} 15. Bg5 {[%clk 0:03:48]} 15...
dxc3 {[%clk 0:04:25.8]} 16. Nxc3 {[%clk 0:03:46.2]} 16... Qxb2 {[%clk
0:04:23.6]} 0-1

[Event "Live Chess"]
[Site "Chess.com"]
[Date "2023.05.21"]
[Round "-"]
[White "Brooms1989"]
[Black "Goblinbasher"]
[Result "1/2-1/2"]
[WhiteElo "1142"]
[BlackElo "1223"]
[TimeControl "300"]
[EndTime "4:34:45 PDT"]
[Termination "Game drawn by repetition"]

1. e4 {[%clk 0:04:57.5]} 1... c5 {[%clk 0:04:58.5]} 2. Nc3 {[%clk 0:04:55.9]}
2... e6 {[%clk 0:04:57.2]} 3. f4 {[%clk 0:04:54.5]} 3... Nc6 {[%clk 0:04:55.7]}
4. Nf3 {[%clk 0:04:53.3]} 4... a6 {[%clk 0:04:54.3]} 5. d3 {[%clk 0:04:44.1]}
5... b5 {[%clk 0:04:52.6]} 6. a3 {[%clk 0:04:42.5]} 6... Bb7 {[%clk 0:04:50.3]}
7. Be2 {[%clk 0:04:39.3]} 7... Qc7 {[%clk 0:04:48.2]} 8. O-O {[%clk 0:04:36.9]}
8... Nf6 {[%clk 0:04:44.9]} 9. e5 {[%clk 0:04:34.4]} 9... Nd5 {[%clk 0:04:40.1]}
10. Nxd5 {[%clk 0:04:31.1]} 10... exd5 {[%clk 0:04:39]} 11. Qe1 {[%clk
0:04:13.8]} 11... d4 {[%clk 0:04:34.1]} 12. Qg3 {[%clk 0:04:11.6]} 12... Ne7
{[%clk 0:04:31.4]} 13. Qg4 {[%clk 0:04:01]} 13... g6 {[%clk 0:04:15.6]} 14. Bd2
{[%clk 0:03:37.7]} 14... Nf5 {[%clk 0:04:12.5]} 15. Nh4 {[%clk 0:03:30.3]} 15...
Ne3 {[%clk 0:03:55.4]} 16. Bxe3 {[%clk 0:03:26.3]} 16... dxe3 {[%clk 0:03:54]}
17. Bf3 {[%clk 0:03:16.4]} 17... Bxf3 {[%clk 0:03:46.2]} 18. Qxf3 {[%clk
0:03:14.1]} 18... Rd8 {[%clk 0:03:37.5]} 19. Qxe3 {[%clk 0:03:10.6]} 19... Bg7
{[%clk 0:03:32.8]} 20. Rae1 {[%clk 0:02:58.3]} 20... O-O {[%clk 0:03:30.6]} 21.
f5 {[%clk 0:02:47.6]} 21... Rde8 {[%clk 0:03:21.9]} 22. f6 {[%clk 0:02:43.7]}
22... Bxf6 {[%clk 0:03:20.6]} 23. Rxf6 {[%clk 0:02:38.4]} 23... Re6 {[%clk
0:03:03.4]} 24. Rxe6 {[%clk 0:02:30.4]} 24... dxe6 {[%clk 0:03:01]} 25. Qh3
{[%clk 0:02:18]} 25... Qc6 {[%clk 0:02:57]} 26. Nf3 {[%clk 0:02:15]} 26... h5
{[%clk 0:02:35.7]} 27. Re4 {[%clk 0:02:01.8]} 27... c4 {[%clk 0:02:31.6]} 28.
Rh4 {[%clk 0:01:44.9]} 28... cxd3 {[%clk 0:02:25.1]} 29. Rxh5 {[%clk 0:01:41.5]}
29... gxh5 {[%clk 0:02:12.6]} 30. Qxh5 {[%clk 0:01:37.4]} 30... Qc5+ {[%clk
0:01:55.4]} 31. Kf1 {[%clk 0:01:28.8]} 31... dxc2 {[%clk 0:01:50.8]} 32. Qg5+
{[%clk 0:01:26.5]} 32... Kh8 {[%clk 0:01:42.6]} 33. Qh5+ {[%clk 0:01:25.7]}
33... Kg8 {[%clk 0:01:41.1]} 34. Qg4+ {[%clk 0:01:23.6]} 34... Kh8 {[%clk
0:01:38]} 35. Qh4+ {[%clk 0:01:22.9]} 35... Kg8 {[%clk 0:01:36.9]} 36. Qg4+
{[%clk 0:01:22.2]} 36... Kh8 {[%clk 0:01:35.9]} 37. Qh4+ {[%clk 0:01:21.7]}
37... Kg8 {[%clk 0:01:35.1]} 38. Qg4+ {[%clk 0:01:21.2]} 1/2-1/2

[Event "Live Chess"]
[Site "Chess.com"]
[Date "2023.05.21"]
[Round "-"]
[White "Bunny55"]
[Black "davigator"]
[Result "0-1"]
[WhiteElo "1014"]
[BlackElo "2328"]
[TimeControl "300"]
[EndTime "4:35:13 PDT"]
[Termination "davigator won by resignation"]

1. e4 {[%clk 0:04:54]} 1... c5 {[%clk 0:04:58.9]} 2. Nf3 {[%clk 0:04:44.2]} 2...
Nc6 {[%clk 0:04:57.8]} 3. d4 {[%clk 0:04:43.1]} 3... cxd4 {[%clk 0:04:56.6]} 4.
Nxd4 {[%clk 0:04:42.1]} 4... Nf6 {[%clk 0:04:56.2]} 5. Nc3 {[%clk 0:04:40.8]}
5... d6 {[%clk 0:04:55.4]} 6. Be3 {[%clk 0:04:38.5]} 6... Ng4 {[%clk 0:04:53.6]}
7. Bc1 {[%clk 0:04:35.1]} 7... Qb6 {[%clk 0:04:51.9]} 8. h3 {[%clk 0:04:29]}
8... Nxf2 {[%clk 0:04:49.4]} 9. Qe2 {[%clk 0:04:19.3]} 9... Nxh1 {[%clk
0:04:47.5]} 10. Be3 {[%clk 0:04:15.8]} 10... Qxb2 {[%clk 0:04:38.3]} 11. Nxc6
{[%clk 0:04:10.6]} 11... Qxc3+ {[%clk 0:04:35.4]} 0-1

[Event "Live Chess"]
[Site "Chess.com"]
[Date "2023.05.21"]
[Round "-"]
[White "Tiltador"]
[Black "ChessClubLive"]
[Result "0-1"]
[WhiteElo "808"]
[BlackElo "1790"]
[TimeControl "300"]
[EndTime "4:35:18 PDT"]
[Termination "ChessClubLive won by checkmate"]

1. e4 {[%clk 0:04:56.3]} 1... c5 {[%clk 0:04:58.3]} 2. Nf3 {[%clk 0:04:54.9]}
2... e6 {[%clk 0:04:57.6]} 3. Bc4 {[%clk 0:04:50.3]} 3... a6 {[%clk 0:04:55.5]}
4. b3 {[%clk 0:04:46.4]} 4... b5 {[%clk 0:04:54.5]} 5. Bd3 {[%clk 0:04:44.4]}
5... Bb7 {[%clk 0:04:49]} 6. O-O {[%clk 0:04:39]} 6... Bd6 {[%clk 0:04:40.3]} 7.
Nc3 {[%clk 0:04:32.3]} 7... Ne7 {[%clk 0:04:37.6]} 8. a4 {[%clk 0:04:28]} 8...
bxa4 {[%clk 0:04:28.4]} 9. Nxa4 {[%clk 0:04:24.3]} 9... Nbc6 {[%clk 0:04:24.9]}
10. Nc3 {[%clk 0:04:19.7]} 10... Ne5 {[%clk 0:04:22.6]} 11. Nxe5 {[%clk
0:04:15.5]} 11... Bxe5 {[%clk 0:04:21.2]} 12. f4 {[%clk 0:04:09.8]} 12... Bc7
{[%clk 0:04:15.5]} 13. Qg4 {[%clk 0:03:58.4]} 13... O-O {[%clk 0:04:02.7]} 14.
Qh4 {[%clk 0:03:39.4]} 14... Ng6 {[%clk 0:03:59]} 15. Qxd8 {[%clk 0:03:28.7]}
15... Rfxd8 {[%clk 0:03:48.1]} 16. e5 {[%clk 0:03:22.4]} 16... Nh4 {[%clk
0:03:28.1]} 17. g3 {[%clk 0:03:15.8]} 17... Nf3+ {[%clk 0:03:19.9]} 18. Kf2
{[%clk 0:03:08.7]} 18... Nxh2 {[%clk 0:03:17.4]} 19. Be4 {[%clk 0:02:59.4]}
19... Bxe4 {[%clk 0:02:54.3]} 20. Nxe4 {[%clk 0:02:57.6]} 20... Nxf1 {[%clk
0:02:53.2]} 21. Kxf1 {[%clk 0:02:54.8]} 21... d5 {[%clk 0:02:49.2]} 22. Nd6
{[%clk 0:02:42]} 22... Bxd6 {[%clk 0:02:47.4]} 23. exd6 {[%clk 0:02:40.2]} 23...
Rxd6 {[%clk 0:02:46.4]} 24. c4 {[%clk 0:02:38.3]} 24... dxc4 {[%clk 0:02:44]}
25. bxc4 {[%clk 0:02:37.1]} 25... Rd3 {[%clk 0:02:41.5]} 26. Kg2 {[%clk
0:02:34.6]} 26... Kf8 {[%clk 0:02:32.7]} 27. Ra5 {[%clk 0:02:29.9]} 27... Rb8
{[%clk 0:02:20.9]} 28. Rxa6 {[%clk 0:02:17.2]} 28... Rb1 {[%clk 0:02:14.7]} 29.
Ra8+ {[%clk 0:02:13.7]} 29... Ke7 {[%clk 0:02:12]} 30. Ra7+ {[%clk 0:02:06.5]}
30... Kf6 {[%clk 0:02:09.4]} 31. Ba3 {[%clk 0:02:01.5]} 31... Rxd2+ {[%clk
0:02:00.7]} 32. Kh3 {[%clk 0:01:59.5]} 32... Ra2 {[%clk 0:01:46.8]} 33. Ra5
{[%clk 0:01:37.4]} 33... Rb3 {[%clk 0:01:41.5]} 34. Rxc5 {[%clk 0:01:19.2]}
34... Raxa3 {[%clk 0:01:37.5]} 35. Kh4 {[%clk 0:00:57.8]} 35... Rxg3 {[%clk
0:01:35.9]} 36. Rg5 {[%clk 0:00:36.8]} 36... Rh3+ {[%clk 0:01:27.9]} 37. Kg4
{[%clk 0:00:31.3]} 37... Rag3# {[%clk 0:01:25.6]} 0-1

[Event "Live Chess"]
[Site "Chess.com"]
[Date "2023.05.21"]
[Round "-"]
[White "JohanKjeldahl"]
[Black "LiamClery2020"]
[Result "0-1"]
[WhiteElo "1880"]
[BlackElo "2005"]
[TimeControl "300"]
[EndTime "4:35:21 PDT"]
[Termination "LiamClery2020 won by checkmate"]

1. c4 {[%clk 0:04:55.7]} 1... Nf6 {[%clk 0:04:56.1]} 2. Nc3 {[%clk 0:04:53.5]}
2... e5 {[%clk 0:04:54.9]} 3. Nf3 {[%clk 0:04:50.9]} 3... Nc6 {[%clk 0:04:53.8]}
4. e3 {[%clk 0:04:50]} 4... d5 {[%clk 0:04:49.3]} 5. cxd5 {[%clk 0:04:48]} 5...
Nxd5 {[%clk 0:04:49.2]} 6. Be2 {[%clk 0:04:38.9]} 6... Nxc3 {[%clk 0:04:44.1]}
7. bxc3 {[%clk 0:04:36.3]} 7... Bd6 {[%clk 0:04:43.5]} 8. d4 {[%clk 0:04:34.2]}
8... exd4 {[%clk 0:04:41.4]} 9. exd4 {[%clk 0:04:32.8]} 9... O-O {[%clk
0:04:40.9]} 10. Be3 {[%clk 0:04:31.7]} 10... Re8 {[%clk 0:04:40]} 11. O-O {[%clk
0:04:30.2]} 11... Bg4 {[%clk 0:04:38.8]} 12. Rb1 {[%clk 0:04:27.9]} 12... Rb8
{[%clk 0:04:36.4]} 13. h3 {[%clk 0:04:26.7]} 13... Bf5 {[%clk 0:04:35.2]} 14.
Rb5 {[%clk 0:04:23.3]} 14... Qd7 {[%clk 0:04:30.4]} 15. Qb3 {[%clk 0:04:05.7]}
15... Bxh3 {[%clk 0:04:17.1]} 16. gxh3 {[%clk 0:04:03.1]} 16... Qxh3 {[%clk
0:04:17]} 17. Rg5 {[%clk 0:03:54.4]} 17... Re4 {[%clk 0:04:11.9]} 18. Qd5 {[%clk
0:03:33.3]} 18... Rh4 {[%clk 0:04:00.1]} 19. Rxg7+ {[%clk 0:03:05.2]} 19... Kh8
{[%clk 0:03:57]} 20. Nxh4 {[%clk 0:02:48.2]} 20... Qh2# {[%clk 0:03:55]} 0-1

[Event "Live Chess"]
[Site "Chess.com"]
[Date "2023.05.21"]
[Round "-"]
[White "chrisbradgate"]
[Black "YF22Raptor"]
[Result "0-1"]
[WhiteElo "865"]
[BlackElo "1020"]
[TimeControl "300"]
[EndTime "4:35:23 PDT"]
[Termination "YF22Raptor won on time"]

1. d4 {[%clk 0:04:57.3]} 1... c6 {[%clk 0:04:59.4]} 2. Bf4 {[%clk 0:04:55.9]}
2... d5 {[%clk 0:04:59.1]} 3. e3 {[%clk 0:04:54.4]} 3... Nf6 {[%clk 0:04:58.7]}
4. c3 {[%clk 0:04:53.3]} 4... Bd7 {[%clk 0:04:53.4]} 5. h3 {[%clk 0:04:52.3]}
5... e6 {[%clk 0:04:52.7]} 6. Nf3 {[%clk 0:04:51.1]} 6... c5 {[%clk 0:04:52.1]}
7. Nbd2 {[%clk 0:04:45.1]} 7... Qb6 {[%clk 0:04:49.7]} 8. b3 {[%clk 0:04:42.9]}
8... Nc6 {[%clk 0:04:48.5]} 9. Rb1 {[%clk 0:04:39.7]} 9... cxd4 {[%clk
0:04:46.8]} 10. exd4 {[%clk 0:04:37.3]} 10... Ne7 {[%clk 0:04:29]} 11. Bd3
{[%clk 0:04:34]} 11... Ng6 {[%clk 0:04:20.6]} 12. O-O {[%clk 0:04:28.7]} 12...
Bd6 {[%clk 0:04:19.2]} 13. Bg3 {[%clk 0:04:17.7]} 13... O-O {[%clk 0:04:12.8]}
14. Qc2 {[%clk 0:04:07]} 14... Bxg3 {[%clk 0:04:09.8]} 15. fxg3 {[%clk
0:04:04.5]} 15... Qd6 {[%clk 0:04:09.4]} 16. Bxg6 {[%clk 0:04:02.6]} 16... hxg6
{[%clk 0:04:07.6]} 17. Ne5 {[%clk 0:03:59.2]} 17... Nh7 {[%clk 0:03:56.3]} 18.
Nxd7 {[%clk 0:03:48.1]} 18... Qxd7 {[%clk 0:03:54.8]} 19. Nf3 {[%clk 0:03:43]}
19... Qe8 {[%clk 0:03:47.5]} 20. Ne5 {[%clk 0:03:40.5]} 20... f6 {[%clk
0:03:46.7]} 21. Ng4 {[%clk 0:03:36.8]} 21... Qc6 {[%clk 0:03:37.8]} 22. Rf4
{[%clk 0:03:23.7]} 22... g5 {[%clk 0:03:35.5]} 23. Rf3 {[%clk 0:03:14.4]} 23...
b5 {[%clk 0:03:30.6]} 24. h4 {[%clk 0:03:05.1]} 24... b4 {[%clk 0:03:22.1]} 25.
h5 {[%clk 0:02:48.8]} 25... Rac8 {[%clk 0:03:15.8]} 26. Rc1 {[%clk 0:02:44.1]}
26... Rc7 {[%clk 0:03:09.3]} 27. h6 {[%clk 0:02:42.8]} 27... gxh6 {[%clk
0:03:06.2]} 28. Nxh6+ {[%clk 0:02:41.7]} 28... Kg7 {[%clk 0:03:05]} 29. Ng4
{[%clk 0:02:19.9]} 29... Rfc8 {[%clk 0:03:02]} 30. Ne3 {[%clk 0:02:02]} 30...
Qxc3 {[%clk 0:02:56.4]} 31. Qxc3 {[%clk 0:01:51.2]} 31... Rxc3 {[%clk
0:02:54.8]} 32. Rcf1 {[%clk 0:01:50]} 32... a5 {[%clk 0:02:37.5]} 33. Ng4 {[%clk
0:01:36.2]} 33... Rxf3 {[%clk 0:02:27.3]} 34. Rxf3 {[%clk 0:01:28.5]} 34... Rc2
{[%clk 0:02:25]} 35. Rf2 {[%clk 0:01:21.5]} 35... Rc3 {[%clk 0:02:19.3]} 36. Kh2
{[%clk 0:01:17.9]} 36... f5 {[%clk 0:02:11.2]} 37. Ne5 {[%clk 0:01:13.3]} 37...
g4 {[%clk 0:02:04.6]} 38. Nd7 {[%clk 0:00:58.5]} 38... Ng5 {[%clk 0:01:55.9]}
39. Nc5 {[%clk 0:00:57.3]} 39... Kf6 {[%clk 0:01:53]} 40. Na4 {[%clk 0:00:52.9]}
40... Rd3 {[%clk 0:01:51]} 41. Nc5 {[%clk 0:00:48.9]} 41... Rxd4 {[%clk
0:01:49.5]} 42. Rc2 {[%clk 0:00:36.5]} 42... Ne4 {[%clk 0:01:41.6]} 43. Nd7+
{[%clk 0:00:30.5]} 43... Ke7 {[%clk 0:01:34.4]} 44. Nb6 {[%clk 0:00:21.6]} 44...
Nc3 {[%clk 0:01:31.1]} 45. Rb2 {[%clk 0:00:15.2]} 45... Re4 {[%clk 0:01:29.1]}
46. Na4 {[%clk 0:00:11.2]} 46... Re2 {[%clk 0:01:27.6]} 47. Rxe2 {[%clk
0:00:08]} 47... Nxe2 {[%clk 0:01:25.4]} 48. Nc5 {[%clk 0:00:06.2]} 48... Nc3
{[%clk 0:01:23.4]} 49. Na4 {[%clk 0:00:03]} 49... Nxa2 {[%clk 0:01:22.1]} 50.
Nc5 {[%clk 0:00:01]} 50... Nc3 {[%clk 0:01:20.9]} 0-1

[Event "Live Chess"]
[Site "Chess.com"]
[Date "2023.05.21"]
[Round "-"]
[White "SupremeTactician"]
[Black "NomisY"]
[Result "1-0"]
[WhiteElo "2226"]
[BlackElo "1552"]
[TimeControl "300"]
[EndTime "4:35:31 PDT"]
[Termination "SupremeTactician won by resignation"]

1. e4 {[%clk 0:04:58.8]} 1... c6 {[%clk 0:04:58]} 2. d4 {[%clk 0:04:57]} 2... d5
{[%clk 0:04:57.5]} 3. Nc3 {[%clk 0:04:56.9]} 3... dxe4 {[%clk 0:04:55.8]} 4.
Nxe4 {[%clk 0:04:56.8]} 4... Bf5 {[%clk 0:04:54.5]} 5. Nc5 {[%clk 0:04:55.9]}
5... b6 {[%clk 0:04:45.7]} 6. Nb3 {[%clk 0:04:53.9]} 6... e6 {[%clk 0:04:42.1]}
7. Nf3 {[%clk 0:04:52.4]} 7... h6 {[%clk 0:04:31.9]} 8. Bd3 {[%clk 0:04:49.9]}
8... Bxd3 {[%clk 0:04:29.6]} 9. Qxd3 {[%clk 0:04:45.6]} 9... Nf6 {[%clk
0:04:29.1]} 10. O-O {[%clk 0:04:43.5]} 10... Be7 {[%clk 0:04:22.9]} 11. c3
{[%clk 0:04:41.5]} 11... O-O {[%clk 0:04:19.7]} 12. Bf4 {[%clk 0:04:39.3]} 12...
Nbd7 {[%clk 0:04:18.8]} 13. Rad1 {[%clk 0:04:37.8]} 13... c5 {[%clk 0:04:13.8]}
14. dxc5 {[%clk 0:04:32.7]} 14... Nxc5 {[%clk 0:04:12.7]} 15. Nxc5 {[%clk
0:04:31.5]} 15... Bxc5 {[%clk 0:04:09.6]} 16. Qe2 {[%clk 0:04:27.7]} 16... Qe7
{[%clk 0:04:03.3]} 17. Ne5 {[%clk 0:04:20.1]} 17... Qb7 {[%clk 0:03:54.5]} 18.
b4 {[%clk 0:04:06.5]} 18... Be7 {[%clk 0:03:52.5]} 19. Rd3 {[%clk 0:03:56]}
19... Rad8 {[%clk 0:03:45.2]} 20. Rg3 {[%clk 0:03:49.4]} 20... Qe4 {[%clk
0:03:19.2]} 21. Qxe4 {[%clk 0:03:23.2]} 21... Nxe4 {[%clk 0:03:18]} 22. Re3
{[%clk 0:03:23.1]} 22... Nf6 {[%clk 0:03:10]} 23. Nc6 {[%clk 0:03:21.9]} 23...
Nd5 {[%clk 0:02:58.2]} 24. Nxd8 {[%clk 0:03:03.2]} 24... Nxe3 {[%clk 0:02:56.7]}
25. Nc6 {[%clk 0:03:01.1]} 25... Nd5 {[%clk 0:02:50.7]} 26. Nxe7+ {[%clk
0:02:57.8]} 26... Nxe7 {[%clk 0:02:49.6]} 27. Bd6 {[%clk 0:02:57.6]} 27... Re8
{[%clk 0:02:48.7]} 28. Bxe7 {[%clk 0:02:55.7]} 28... Rxe7 {[%clk 0:02:47.3]} 29.
Rd1 {[%clk 0:02:55.6]} 29... Rc7 {[%clk 0:02:42.9]} 30. Rd3 {[%clk 0:02:54.8]}
30... Kf8 {[%clk 0:02:41.3]} 31. Kf1 {[%clk 0:02:53.6]} 31... Ke7 {[%clk
0:02:40.2]} 32. Ke2 {[%clk 0:02:52.8]} 32... e5 {[%clk 0:02:38.6]} 33. Ke3
{[%clk 0:02:50.8]} 33... f5 {[%clk 0:02:38]} 34. f3 {[%clk 0:02:50.1]} 34... Rd7
{[%clk 0:02:34.5]} 35. a4 {[%clk 0:02:43.8]} 35... g5 {[%clk 0:02:14.8]} 36. g4
{[%clk 0:02:37.5]} 36... Rxd3+ {[%clk 0:01:37.2]} 37. Kxd3 {[%clk 0:02:36.3]}
37... fxg4 {[%clk 0:01:36.7]} 38. fxg4 {[%clk 0:02:35.4]} 38... Ke6 {[%clk
0:01:29.3]} 39. Ke4 {[%clk 0:02:34]} 39... Kd6 {[%clk 0:01:21.7]} 40. c4 {[%clk
0:02:32.1]} 40... Ke6 {[%clk 0:01:20.5]} 41. c5 {[%clk 0:02:27.2]} 41... bxc5
{[%clk 0:01:12.4]} 42. bxc5 {[%clk 0:02:27.1]} 42... a5 {[%clk 0:01:11.3]} 43.
h3 {[%clk 0:02:20.3]} 43... Kd7 {[%clk 0:00:50]} 44. Kxe5 {[%clk 0:02:19.1]}
44... Kc6 {[%clk 0:00:49.6]} 45. Kd4 {[%clk 0:02:18.5]} 45... Kd7 {[%clk
0:00:35.9]} 46. Kd5 {[%clk 0:02:16.5]} 46... Kc7 {[%clk 0:00:34.6]} 47. c6
{[%clk 0:02:16.2]} 47... Kc8 {[%clk 0:00:31.1]} 48. Kd6 {[%clk 0:02:16.1]} 48...
Kd8 {[%clk 0:00:30.3]} 49. c7+ {[%clk 0:02:07.2]} 49... Kc8 {[%clk 0:00:29.4]}
50. Kc6 {[%clk 0:02:06.8]} 1-0